Cogmind - Beta 9.6 @@@ ROGUE MODE // 2020.07.17 @ 04:41:10 // Winter2019/RPGLIKE Player: Dullahan Result: Destroyed by Y-54 Guardian with Gatling Laser Performance ------------- Evolutions (3) 1500 Regions Visited (9) 1800 Robots Destroyed (81) 405 Value Destroyed (1620) 1620 Prototype IDs (8) 160 Alien Tech Used (0) 0 Bonus (300) 300 TOTAL SCORE: 5785 Bonus ------- Aligned with FarCom 300 Cogmind --------- Core Integrity 0/600 Matter 465/500 Energy 150/150 System Corruption 0% Temperature Cool (18) Movement Walking (120) Location -7/Lower Caves Parts ------- > --- POWER (1) -------- Light Angular Momentum Engine > --- PROPULSION (3) --- Aluminum Leg Improved Aluminum Leg Carbon-fiber Leg > --- UTILITY (5) ------ Improved Heat Sink High-capacity Matter Pod Advanced Terrain Scan Processor Hacking Suite > --- WEAPON (2) ------- Shock Rifle Pulse Rifle > --- INVENTORY (5) ---- Nuclear Core Improved Cesium-ion Thruster Firepult Grenade Launcher Peak State ------------ > --- POWER ------------ Light Angular Momentum Engine > --- PROPULSION ------- Aluminum Leg Improved Aluminum Leg Carbon-fiber Leg > --- UTILITY ---------- Improved Heat Sink High-capacity Matter Pod Advanced Terrain Scan Processor Insulated Plating Hacking Suite > --- WEAPON ----------- Shock Rifle Pulse Rifle > --- INVENTORY -------- Nuclear Core Improved Cesium-ion Thruster Firepult Grenade Launcher [Rating: 33] Favorites ----------- Power Ion Engine Engine Ion Engine Propulsion Aluminum Leg Leg Aluminum Leg Flight Unit Improved Cesium-ion Thruster Utility Improved Heat Sink Device Improved Heat Sink Storage High-capacity Matter Pod Processor Improved Signal Interpreter Hackware Hacking Suite Protection Insulated Plating Weapon Heavy Assault Rifle Energy Gun Particle Gun Energy Cannon Latent Energy Streamer Ballistic Gun Heavy Assault Rifle Launcher Grenade Launcher Build | -11 -10 -10 -9 -9 -9 -8 -8 -7 -7 ------- Run | Scr Mat Min Mat Min Exi Min Mat Fac Low Slots Evolved 7 | 3 . . 2 . . . 1 1 . Power . | . . . . . . . . . . Propulsion 2 | 1 . . 1 . . . . . . Utility 4 | 1 . . 1 . . . 1 1 . Weapon 1 | 1 . . . . . . . . . Parts Attached 65 | 7 14 4 15 . 7 5 8 5 . Power 8 | 1 3 . 3 . . . . 1 . Engine 8 | 1 3 . 3 . . . . 1 . Core . | . . . . . . . . . . Reactor . | . . . . . . . . . . Propulsion 14 | 2 3 1 5 . . 1 2 . . Treads . | . . . . . . . . . . Leg 13 | 2 3 1 5 . . 1 1 . . Wheel . | . . . . . . . . . . Hover . | . . . . . . . . . . Flight 1 | . . . . . . . 1 . . Utility 16 | 2 3 1 3 . 2 1 3 1 . Device 10 | 2 3 1 2 . . 1 1 . . Storage 2 | . . . . . 2 . . . . Processor 2 | . . . 1 . . . . 1 . Hackware 1 | . . . . . . . 1 . . Protection 1 | . . . . . . . 1 . . Artifact . | . . . . . . . . . . Weapon 27 | 2 5 2 4 . 5 3 3 3 . Energy Gun 9 | 1 1 . 1 . 2 1 1 2 . Energy Cannon 2 | . . . . . 2 . . . . Ballistic Gun 10 | 1 3 1 2 . 1 1 1 . . Ballistic Cannon . | . . . . . . . . . . Launcher 6 | . 1 1 1 . . 1 1 1 . Special Weapon . | . . . . . . . . . . Impact Weapon . | . . . . . . . . . . Slashing Weapon . | . . . . . . . . . . Piercing Weapon . | . . . . . . . . . . Special Melee Weapon . | . . . . . . . . . . Unidentified Prototypes 4 | . . . . . 3 . 1 . . Parts Lost 1 | . . . . . . . . . 1 Power . | . . . . . . . . . . Propulsion . | . . . . . . . . . . Utility 1 | . . . . . . . . . 1 Weapon . | . . . . . . . . . . Highest Loss Streak 1 | . . . . . . . . . 1 Average Slot Usage (%) 98 | . 97 100 93 100 98 100 99 100 100 Engine 11 | . 12 14 11 11 11 11 10 9 9 Leg 29 | . 27 28 27 33 33 33 30 28 27 Device 19 | . 28 28 22 22 20 11 10 9 9 Storage 4 | . . . . . 2 22 11 9 9 Processor 3 | . . . 10 11 9 . . 5 9 Hackware 2 | . . . . . . . 9 9 9 Protection 2 | . . . . . . . 8 9 9 Energy Gun 11 | . 12 . 9 11 10 11 13 18 18 Ballistic Gun 12 | . 15 27 12 11 10 10 6 . . Naked Turns . | . . . . . . . . . . Heaviest Build 23 | 8 10 10 13 13 19 19 19 23 23 Greatest Support 38 | 20 20 20 33 33 33 38 38 38 38 Greatest Overweight (x) . | . . . . . . . . . . Average Overweight (x) . | . . . . . . . . . . Largest Inventory Capacity 5 | 3 4 4 4 4 4 4 5 5 5 Average Capacity 4 | 2 3 4 4 4 4 4 4 5 5 Most Carried 5 | 2 4 4 4 4 4 4 5 5 5 Average Carried 3 | 1 2 3 4 4 3 4 4 5 5 Final Capacity 5 | 3 4 4 4 4 4 4 5 5 5 Final Carried 5 | 2 4 4 4 4 4 4 5 5 5 Class Distribution -------------------- 51% | Mutant 34% | Scavenger-Mutant 14% | Hacker-Mutant Dominant Class ---------------- Mutant | -10/Materials Mutant | -10/Mines Scavenger-Mutant | -9/Materials Scavenger-Mutant | -9/Mines Scavenger-Mutant | -9/Exiles Scavenger-Mutant | -8/Mines Scavenger-Mutant | -8/Materials Hacker-Mutant | -7/Factory Hacker-Mutant | -7/Lower Caves Resources | -11 -10 -10 -9 -9 -9 -8 -8 -7 -7 ----------- Run | Scr Mat Min Mat Min Exi Min Mat Fac Low Matter Collected 1430 | 277 285 39 380 . 120 135 124 30 40 Remotely 91 | 26 65 . . . . . . . . Salvage Created 1684 | 82 412 24 831 . . 124 126 45 40 Parts 157 | 4 39 12 57 . . 9 27 8 1 Haulers Intercepted 5 | . 2 . 3 . . . . . . Recyclers Shooed 4 | . 1 . 1 . . . 2 . . Parts Field Recycled . | . . . . . . . . . . Retrieved Matter . | . . . . . . . . . . Parts Self-Destructed 2 | . . . . . . . . . 2 Prevented . | . . . . . . . . . . Kills | -11 -10 -10 -9 -9 -9 -8 -8 -7 -7 ------- Run | Scr Mat Min Mat Min Exi Min Mat Fac Low Combat Hostiles Destroyed 55 | . 13 5 16 . . 5 12 4 . Guns 30 | . 10 2 9 . . 2 5 2 . AOE 25 | . 3 3 7 . . 3 7 2 . Classes Destroyed 14 | 2 5 . 4 . . 1 . 1 1 Worker 4 | . . . 3 . . 1 . . . Builder 2 | . . . 1 . . . . 1 . Tunneler 2 | 1 1 . . . . . . . . Hauler 5 | . 2 . 3 . . . . . . Recycler 6 | 1 1 . 2 . . 1 1 . . Operator 2 | . 1 . 1 . . . . . . Watcher 4 | . 3 . . . . . 1 . . Swarmer 29 | . 12 3 3 . . . 11 . . Grunt 19 | . 1 2 10 . . 4 . 2 . Brawler 1 | . . . . . . 1 . . . Duelist 2 | . . . 1 . . . . 1 . Sentry 3 | . . . 2 . . . 1 . . Programmer 1 | . . . . . . . . 1 . Samaritan 1 | . . . . . . . . . 1 Best Kill Streak 10 | 2 5 3 10 . . 4 8 4 . Combat Bots Only 7 | . 3 3 7 . . 3 7 3 . Max Kills in Single Turn 4 | 1 2 3 2 . . 2 4 2 1 Gunslinging . | . . . . . . . . . . Exploded 4 | . 2 3 2 . . 2 4 2 . Melee . | . . . . . . . . . . Uniques/NPCs Destroyed . | . . . . . . . . . . Combat | -11 -10 -10 -9 -9 -9 -8 -8 -7 -7 -------- Run | Scr Mat Min Mat Min Exi Min Mat Fac Low Damage Taken 2491 | . 483 172 487 . . 455 136 638 120 Core 1919 | . 392 138 407 . . 361 101 439 81 Absorbed by Shields . | . . . . . . . . . . Redirected to Core 1558 | . 280 111 283 . . 325 73 417 69 Core Remaining (%) 82 | 100 . 92 . . . 65 72 . . Volleys Fired 191 | 7 74 9 48 . . 19 20 11 3 Largest 2 | 2 2 2 2 . . 2 2 2 2 Hottest 128 | 70 70 40 68 . . 88 128 128 113 Shots Fired 352 | 14 137 17 90 . . 34 38 16 6 Gun 332 | 14 135 16 85 . . 30 36 10 6 Cannon . | . . . . . . . . . . Launcher 20 | . 2 1 5 . . 4 2 6 . Special . | . . . . . . . . . . Kinetic 161 | 7 72 16 43 . . 15 8 . . Thermal 110 | 7 63 . . . . 1 28 8 3 Explosive 20 | . 2 1 5 . . 4 2 6 . Electromagnetic 61 | . . . 42 . . 14 . 2 3 Robot Hit Streak 26 | 5 7 4 26 . . 10 7 12 8 Robot Miss Streak 5 | 1 5 4 3 . . 3 1 1 1 Penetration Max . | . . . . . . . . . . Secondary Targets 3 | . . . 1 . . 1 1 . . Max Gunslinging Chain 1 | . . . 1 . . 1 1 . . Shots Hit Robots 227 | 9 70 8 69 . . 29 24 13 5 Core Hits 141 | 4 29 8 46 . . 18 18 15 3 Critical Hits 1 | . . . 1 . . . . . . Critical Kills . | . . . . . . . . . . Critical Parts Destroyed 1 | . . . 1 . . . . . . Melee Attacks . | . . . . . . . . . . Impact . | . . . . . . . . . . Slashing . | . . . . . . . . . . Piercing . | . . . . . . . . . . Sneak Attacks . | . . . . . . . . . . Combat Hostiles . | . . . . . . . . . . Follow-up Attacks . | . . . . . . . . . . Damage Inflicted 4679 | 112 765 168 1523 . . 609 710 722 70 Guns 2735 | 112 673 87 953 . . 351 344 145 70 Cannons . | . . . . . . . . . . Explosions 1944 | . 92 81 570 . . 258 366 577 . Melee . | . . . . . . . . . . Ramming . | . . . . . . . . . . Kinetic 929 | 23 238 87 395 . . 120 66 . . Thermal 1090 | 89 435 . 66 . . 18 278 171 33 Explosive 1823 | . 92 81 504 . . 258 366 522 . Electromagnetic 837 | . . . 558 . . 213 . 29 37 Impact . | . . . . . . . . . . Slashing . | . . . . . . . . . . Piercing . | . . . . . . . . . . Highest Corruption 3 | . 3 3 . . . . . . . Average Corruption 3 | . 3 3 . . . . . . . Corruption Purged . | . . . . . . . . . . Effects 20 | . 7 13 . . . . . . . Message Errors 6 | . 2 4 . . . . . . . Matter Fused 4 | . 3 1 . . . . . . . Heat Flow Errors 2 | . . 2 . . . . . . . Energy Discharges 6 | . 2 4 . . . . . . . Targeting Errors 2 | . . 2 . . . . . . . Overload Shots . | . . . . . . . . . . Overflow Damage 12 | . . . 7 . . . . 5 . Projectiles . | . . . . . . . . . . Explosions 12 | . . . 7 . . . . 5 . Melee . | . . . . . . . . . . Knockbacks . | . . . . . . . . . . Impact . | . . . . . . . . . . Kinetic . | . . . . . . . . . . Secondary . | . . . . . . . . . . Self-Inflicted Damage 285 | . . 12 53 . . 70 . 150 . Shots 8 | . . 1 2 . . 3 . 2 . Rammed . | . . . . . . . . . . Targets Rammed . | . . . . . . . . . . Kicked . | . . . . . . . . . . Crushed . | . . . . . . . . . . Highest Temperature 229 | 70 46 229 . . . 6 177 126 66 Average Temperature 38 | 28 11 118 . . . 6 41 55 30 Received Heat Transfer 696 | . 6 93 192 . . 225 9 135 36 Siege Activations . | . . . . . . . . . . Robots Corrupted . | . . . . . . . . . . Combat Hostiles . | . . . . . . . . . . Parts Fried 2 | . . . 2 . . . . . . Impact Corruptions . | . . . . . . . . . . Robots Melted . | . . . . . . . . . . Combat Hostiles . | . . . . . . . . . . Parts Melted 6 | . . . . . . . 3 3 . Heat Transferred 2370 | 259 999 . 100 . . 37 629 272 74 Parts Sabotaged . | . . . . . . . . . . Parts Stolen . | . . . . . . . . . . Parts Stripped . | . . . . . . . . . . Power Chain Reactions 2 | . . . 1 . . . . 1 . Missiles Intercepted . | . . . . . . . . . . Alert | -11 -10 -10 -9 -9 -9 -8 -8 -7 -7 ------- Run | Scr Mat Min Mat Min Exi Min Mat Fac Low Peak Influence 361 | 10 283 164 342 129 . 154 361 160 . Average Influence 119 | 2 130 63 142 129 . 141 168 88 . Maximum Alert Level 1 | . 1 . 1 . . . 1 . . Low Security (%) 85 | 100 84 100 71 100 . 100 59 100 . Level 1 14 | . 15 . 28 . . . 40 . . Level 2 . | . . . . . . . . . . Level 3 . | . . . . . . . . . . Level 4 . | . . . . . . . . . . Level 5 . | . . . . . . . . . . High Security . | . . . . . . . . . . Max Security . | . . . . . . . . . . Squads Dispatched 6 | . 1 . 1 . . . 3 1 . Investigation 1 | . . . . . . . 1 . . Extermination . | . . . . . . . . . . Reinforcement 5 | . 1 . 1 . . . 2 1 . Assault . | . . . . . . . . . . Garrison . | . . . . . . . . . . Intercept . | . . . . . . . . . . Construction Impeded 1 | . . . . . . . . 1 . Haulers Reinforced . | . . . . . . . . . . Stealth | -11 -10 -10 -9 -9 -9 -8 -8 -7 -7 --------- Run | Scr Mat Min Mat Min Exi Min Mat Fac Low Distress Signals 5 | . 3 . . . . . 2 . . Communications Jammed . | . . . . . . . . . . Distress Signals . | . . . . . . . . . . Times Spotted 84 | . 26 5 19 . . 8 18 7 1 Peak Tracking Total 8 | . 5 3 5 . . 3 8 3 1 Tactical Retreats 3 | . 2 . . . . 1 . . . Traps | -11 -10 -10 -9 -9 -9 -8 -8 -7 -7 ------- Run | Scr Mat Min Mat Min Exi Min Mat Fac Low Traps Triggered 4 | . 2 . . . . . 1 1 . Indirectly . | . . . . . . . . . . Trap Hack Attempts . | . . . . . . . . . . Triggered . | . . . . . . . . . . Disarmed . | . . . . . . . . . . Reprogrammed . | . . . . . . . . . . Reused . | . . . . . . . . . . Traps Extracted . | . . . . . . . . . . Installed . | . . . . . . . . . . Triggered . | . . . . . . . . . . Machines | -11 -10 -10 -9 -9 -9 -8 -8 -7 -7 ---------- Run | Scr Mat Min Mat Min Exi Min Mat Fac Low Machines Disabled 6 | . . . 3 . . . 1 2 . Max in Single Turn 2 | . . . 2 . . . 1 1 . Garrison Access 1 | . . . . . . . . 1 . Machines Sabotaged . | . . . . . . . . . . Garrisons Compromised . | . . . . . . . . . . Overloaded Fab Kills . | . . . . . . . . . . Fab Network Shutdowns . | . . . . . . . . . . Hacking | -11 -10 -10 -9 -9 -9 -8 -8 -7 -7 --------- Run | Scr Mat Min Mat Min Exi Min Mat Fac Low Machines Accessed 20 | . 7 . 4 . 3 . 4 2 . Terminals 16 | . 7 . 4 . . . 4 1 . Fabricators . | . . . . . . . . . . Repair Stations . | . . . . . . . . . . Recycling Units . | . . . . . . . . . . Scanalyzers . | . . . . . . . . . . Garrison Access 1 | . . . . . . . . 1 . Total Hacks 66 | . 17 . 11 . 25 . 8 5 . Successful 49 | . 11 . 3 . 25 . 5 5 . Failed 17 | . 6 . 8 . . . 3 . . Catastrophic 3 | . . . 3 . . . . . . Database Lockouts . | . . . . . . . . . . Manual 30 | . 11 . 8 . 1 . 6 4 . Terminals 40 | . 17 . 11 . . . 8 4 . Fabricators . | . . . . . . . . . . Repair Stations . | . . . . . . . . . . Recycling Units . | . . . . . . . . . . Scanalyzers . | . . . . . . . . . . Garrison Access 1 | . . . . . . . . 1 . Terminal Hacks 40 | . 7 . 1 . 25 . 4 3 . Record 25 | . . . . . 25 . . . . Robot Analysis 2 | . 2 . . . . . . . . Prototype ID Bank 2 | . 1 . . . . . 1 . . Level Access Points 2 | . . . . . . . 1 1 . Branch Access Points 1 | . 1 . . . . . . . . Terminal Index 1 | . . . . . . . . 1 . Fabricator Index 1 | . . . . . . . . 1 . Locate Traps 4 | . 2 . 1 . . . 1 . . Transport Status 1 | . 1 . . . . . . . . Zone Layout 1 | . . . . . . . 1 . . Fabricator Hacks . | . . . . . . . . . . Repair Station Hacks . | . . . . . . . . . . Recycling Unit Hacks . | . . . . . . . . . . Scanalyzer . | . . . . . . . . . . Garrison Access Hacks 1 | . . . . . . . . 1 . Seal Access 1 | . . . . . . . . 1 . Unauthorized Hacks 8 | . 4 . 2 . . . 1 1 . Terminals 8 | . 4 . 2 . . . 1 1 . Track 2 | . 2 . . . . . . . . Botnet 6 | . 2 . 2 . . . 1 1 . Fabricators . | . . . . . . . . . . Repair Stations . | . . . . . . . . . . Recycling Units . | . . . . . . . . . . Scanalyzers . | . . . . . . . . . . Garrison Access . | . . . . . . . . . . Data Cores Recovered 1 | . . . 1 . . . . . . Used . | . . . . . . . . . . Hacking Detections 11 | . 5 . 4 . . . 1 1 . Full Trace Events 1 | . 1 . . . . . . . . Feedback Events . | . . . . . . . . . . Feedback Blocked . | . . . . . . . . . . Robot Schematics Acquired . | . . . . . . . . . . Robots Built . | . . . . . . . . . . Matter . | . . . . . . . . . . Time . | . . . . . . . . . . Total Robot Build Rating . | . . . . . . . . . . Part Schematics Acquired . | . . . . . . . . . . Parts Built . | . . . . . . . . . . Matter . | . . . . . . . . . . Time . | . . . . . . . . . . Total Part Build Rating . | . . . . . . . . . . Parts Repaired . | . . . . . . . . . . Time . | . . . . . . . . . . Parts Recycled . | . . . . . . . . . . Recycled Matter . | . . . . . . . . . . Retrieved Matter . | . . . . . . . . . . Retrieved Components . | . . . . . . . . . . Parts Scanalyzed . | . . . . . . . . . . Part Schematics Acquired . | . . . . . . . . . . Parts Damaged . | . . . . . . . . . . Bothacking | -11 -10 -10 -9 -9 -9 -8 -8 -7 -7 ------------ Run | Scr Mat Min Mat Min Exi Min Mat Fac Low Used RIF Installer . | . . . . . . . . . . Robots Hacked . | . . . . . . . . . . Non-combat . | . . . . . . . . . . Combat . | . . . . . . . . . . Robot Hacks Applied . | . . . . . . . . . . Relay Couplers Released . | . . . . . . . . . . Robots Rewired . | . . . . . . . . . . Allies Hacked . | . . . . . . . . . . Hacks Repelled . | . . . . . . . . . . Allies | -11 -10 -10 -9 -9 -9 -8 -8 -7 -7 -------- Run | Scr Mat Min Mat Min Exi Min Mat Fac Low Total Allies . | . . . . . . . . . . Largest Group . | . . . . . . . . . . Highest-Rated Group . | . . . . . . . . . . Highest-Rated Ally . | . . . . . . . . . . Total Orders . | . . . . . . . . . . Ally Attacks . | . . . . . . . . . . Total Damage . | . . . . . . . . . . Kills . | . . . . . . . . . . Allies Corrupted . | . . . . . . . . . . Allies Melted . | . . . . . . . . . . Intel | -11 -10 -10 -9 -9 -9 -8 -8 -7 -7 ------- Run | Scr Mat Min Mat Min Exi Min Mat Fac Low Robot Analysis Total 2 | . 2 . . . . . . . . Derelict Logs Recovered 3 | . . 2 . 1 . . . . . Drone Launches . | . . . . . . . . . . Drone Recoveries . | . . . . . . . . . . Exploration | -11 -10 -10 -9 -9 -9 -8 -8 -7 -7 ------------- Run | Scr Mat Min Mat Min Exi Min Mat Fac Low Turns Passed 4615 | 78 1149 651 544 77 514 314 633 542 113 Spaces Moved 2890 | 44 733 496 267 65 416 197 365 232 75 Core 10 | 10 . . . . . . . . . Treads . | . . . . . . . . . . Legs 2880 | 34 733 496 267 65 416 197 365 232 75 Wheels . | . . . . . . . . . . Hover . | . . . . . . . . . . Flight . | . . . . . . . . . . Fastest Speed 50 | 50 120 120 120 120 120 120 120 120 120 Average Speed 119 | 104 120 120 120 120 120 120 120 120 120 Slowest Speed 120 | 120 120 120 120 120 120 120 120 120 120 Overloaded Moves . | . . . . . . . . . . Propulsion Burnouts . | . . . . . . . . . . Robots Hopped . | . . . . . . . . . . Cave-ins Triggered . | . . . . . . . . . . Exploration Rate (%) 40 | 5 97 94 22 18 72 47 33 7 13 Regions Visited 9 Branch Regions 5 Pre-discovered Areas 1 | . . 1 . . . . . . . Known Exits Taken 5 | . 1 . 1 1 . 1 1 . . Unknown Exits Taken 4 | 1 . 1 . . 1 . . 1 . Scrap Searched 3 | . . 1 . . . 2 . . . Spaces Dug . | . . . . . . . . . . Terrain Destroyed 178 | . 16 9 71 . . 30 10 42 . Melee . | . . . . . . . . . . Projectile . | . . . . . . . . . . AOE 178 | . 16 9 71 . . 30 10 42 . Actions | -11 -10 -10 -9 -9 -9 -8 -8 -7 -7 --------- Run | Scr Mat Min Mat Min Exi Min Mat Fac Low Total 3708 | 60 877 537 403 64 432 241 523 479 92 Wait 449 | 1 33 11 53 . . . 115 222 14 Move 2881 | 43 732 495 266 64 415 196 364 231 75 Hop . | . . . . . . . . . . Pick Up 10 | 2 3 1 . . 1 . 3 . . Fast Attach 27 | 7 5 . 3 . 7 . 4 1 . Attach 2 | . 1 . . . . . 1 . . Detach . | . . . . . . . . . . Swap 36 | . 8 4 12 . . 5 3 4 . Drop 43 | . 9 3 11 . 9 3 6 2 . Fire 191 | 7 74 9 48 . . 19 20 11 3 Melee . | . . . . . . . . . . Ram . | . . . . . . . . . . Kick . | . . . . . . . . . . Crush . | . . . . . . . . . . Escape Stasis 4 | . . . . . . . . 4 . Rewire . | . . . . . . . . . . Trap . | . . . . . . . . . . Miscellaneous 65 | . 12 14 10 . . 18 7 4 . Route ------- -11/Scrapyard -10/Materials (discovered 4 exits: *Mat x3 / *Min) -10/Mines -9/Materials (discovered 2 exits: *Mat / *Min) -9/Mines -9/Exiles -8/Mines -8/Materials (discovered 3 exits: *Fac x3) -7/Factory (discovered 5 exits: Fac x4 / [*Low]) -7/Lower Caves History --------- Turn | Location | Event 4 | -11/Scrapyard | Upgraded with Propulsion slot (x1) 4 | -11/Scrapyard | Upgraded with Utility slot (x1) 4 | -11/Scrapyard | Upgraded with Weapon slot (x1) 8 | -11/Scrapyard | Discovered new exit (range 15) 79 | -11/Scrapyard | Entered Materials 302 | -10/Materials | Build established: Mutant 344 | -10/Materials | Discovered new exit (range 11) 532 | -10/Materials | Discovered new exit (range 11) 758 | -10/Materials | Discovered new exit (range 16) 949 | -10/Materials | Discovered new exit (range 14) 989 | -10/Materials | Identified exit to Mines 1096 | -10/Materials | Reached level 2 1228 | -10/Materials | Entered Mines 1263 | -10/Mines | Met a Derelict bent on vengeance 1303 | -10/Mines | Learned location of Zion (-7) 1444 | -10/Mines | Learned Materials terminal intel 1582 | -10/Mines | Core integrity fell below 50% 1866 | -10/Mines | Discovered new exit (range 14) 1879 | -10/Mines | Entered Materials 1880 | -9/Materials | Loaded intel: 12 terminal locations 1881 | -9/Materials | Reached level 3 1885 | -9/Materials | Upgraded with Propulsion slot (x1) 1885 | -9/Materials | Upgraded with Utility slot (x1) 2020 | -9/Materials | Reached level 4 2162 | -9/Materials | Discovered new exit (range 10) 2203 | -9/Materials | Identified exit to Materials 2274 | -9/Materials | Destroyed 7 combat bots 2302 | -9/Materials | Reached level 5 2326 | -9/Materials | Discovered new exit (range 16) 2342 | -9/Materials | Core integrity fell below 50% 2397 | -9/Materials | Identified exit to Mines 2423 | -9/Materials | Entered Mines 2448 | -9/Mines | Build established: Scavenger-Mutant 2477 | -9/Mines | Learned Materials emergency access door positions 2495 | -9/Mines | Deemed a non-threat by the Exiles lab entrance 2495 | -9/Mines | Discovered new exit (range 5) 2499 | -9/Mines | Identified exit to Exiles 2500 | -9/Mines | Entered Exiles 2530 | -9/Exiles | Met 8R-AWN 2550 | -9/Exiles | Met EX-HEX 2614 | -9/Exiles | Met EX-DEC 2738 | -9/Exiles | Met EX-BIN 2756 | -9/Exiles | Aligned with FarCom system 2757 | -9/Exiles | Given EX-Vault access code 2818 | -9/Exiles | Opened EX-Vault 2825 | -9/Exiles | Found Prototype Energy Cannon 2825 | -9/Exiles | Identified Latent Energy Streamer 2829 | -9/Exiles | Found Prototype Energy Cannon 2829 | -9/Exiles | Identified Firepult 2833 | -9/Exiles | Found Prototype Energy Gun 2833 | -9/Exiles | Identified AWS/Thermal 2875 | -9/Exiles | Warned to stay clear of 0b10 Research branches 3005 | -9/Exiles | Discovered new exit (range 10) 3014 | -9/Exiles | Left Exiles lab with Firepult 3014 | -9/Exiles | Entered Mines 3016 | -8/Mines | Reached level 6 3076 | -8/Mines | Core integrity fell below 20% 3293 | -8/Mines | Discovered exit to Materials (range 14) 3328 | -8/Mines | Entered Materials 3330 | -8/Materials | Reached level 7 3343 | -8/Materials | Upgraded with Utility slot (x1) 3415 | -8/Materials | Identified exit to Factory 3608 | -8/Materials | Reached level 8 3629 | -8/Materials | Destroyed 7 combat bots 3961 | -8/Materials | Entered Factory 3963 | -7/Factory | Reached level 9 3969 | -7/Factory | Identified exit to Factory 4162 | -7/Factory | Upgraded with Utility slot (x1) 4284 | -7/Factory | Build established: Hacker-Mutant 4479 | -7/Factory | Reached level 10 4480 | -7/Factory | Core integrity fell below 50% 4490 | -7/Factory | Discovered new exit (range 11) 4502 | -7/Factory | Core integrity fell below 20% 4503 | -7/Factory | Entered Lower Caves 4595 | -7/Lower Caves | Attracted the attention of an 0b10 checkpoint 4616 | -7/Lower Caves | Destroyed by Y-54 Guardian with Gatling Laser Last Messages --------------- 04486_ R-06 Scavenger collects Wheel. 04487_ U-05 Engineer lays Concrete. 04488_ R-06 Scavenger collects Terrain Scan Processor. 04488_ U-05 Engineer lays Concrete. 04490_ The unstable cave ceiling collapses. 04490_ R-06 Scavenger collects Structural Scanner. 04490_ EXIT=FOUND 04491_ Connecting with Terminal... 04491_ U-05 Engineer lays Concrete. 04492_ The unstable cave ceiling collapses. 04492_ U-05 Engineer lays Concrete. 04493_ The unstable cave ceiling collapses. 04493_ U-05 Engineer builds a Door. LOCATION=UNKNOWN GOAL=ESCAPE 04509_ CO-DDH(S) destroyed. 04514_ Acquired 40 matter. 04524_ Upgraded: Sensor Range (+16) 04595_ Y-54 Guardian: "INTERCEPTING UNREGISTERED DERELICT." 04616_ Insulated Plating destroyed. Map ----- +----------------------------------------------------+ | | | | | ?????????????????????????????????????????????????? | | ?????????????????????????????????????????????????? | | ?????????????????????????????????????????????????? | | ?????????????????????????????????????????????????? | | ?????????????????????????????????????????????????? | | ?????????????????????????????????????????????????? | | ?????????????????????????????????????????????????? | | ?????????????????????????????????????????????????? | | ?????????????????????????????????????????????????? | | ??????????????????????????????????????????#####??? | | ?????????????????????????????????????????## ##?? | | ?????????????????????????????????????????? ??? | | ??????????????????????????????????????????# ???? | | ??????????????????????????????????????????# ##??? | | ??????????????????????????????????####????## #??? | | ?????????????????????????????????## ###### # #### | | ?????????????????????????????????# ## | | ???????? ?????????????????####?### ### | | ???????? ??????????????## ### ### #?## | | ??????? #????##?????# #### #?## #??# | | ??????? ### #????# #??## ##?# #?# | | ??????# ##### ###?# ## ## # | | ?????? ## ### # | | ?????? Y @ ## ## ### | | ?????? $ ##### S #?## | | ?????? ??????# #??# ## | | ??????? ????????###### #? ##? | | ??????? ??????????????# ###?? | | ???????? ???????????????# ##### #???? | | ???????? ????????????????# ##???? #???? | | ?????????????????????????# ## ##??????## #???? | | ????????????????????????# ####?????????##???? | | ????????????????????????# #?????????????????? | | ????????????????????????# ##?????????????????? | | ????????????????????????# ???????????????????? | | ????????????????????????# ???????????????????? | | ????????????????????????#### ???????????????????? | | ???????????????????????????# ???????????????????? | | ??????????????????????????? ???????????????????? | | ??????????????????????????? ???????????????????? | | ??????????????????????????? ???????????????????? | | ???????????????????????????? ????????????????????? | | ?????????????????????????????????????????????????? | | ?????????????????????????????????????????????????? | | ?????????????????????????????????????????????????? | | ?????????????????????????????????????????????????? | | ?????????????????????????????????????????????????? | | ?????????????????????????????????????????????????? | +----------------------------------------------------+ Best States ------------- Heat Dissipation 39 Energy Generation 18 Energy Capacity 550 Matter Stores 500 Matter Capacity 500 Sight Range 16 Robot Scan Range 20 Terrain Scan Range 16 Terrain Scan Density 210 Armor Coverage 150 Resistance: EM 15 Evasion (%) 50 Offensive Hacking 30 Item Schematics ----------------- None Robot Schematics ------------------ None Fabricated ------------ Nothing Alien Tech Used ----------------- None Achievements -------------- None Challenges ------------ None RPGLIKE | -11 -10 -10 -9 -9 -9 -8 -8 -7 -7 --------- Run | Scr Mat Min Mat Min Exi Min Mat Fac Low Levels Raised 9 | . 1 . 3 . . 1 2 2 . XP Earned 17190 | 3000 1760 1100 3730 500 350 1050 3050 2150 500 XP Spent 12975 | 3000 1000 . 1600 . . . 2350 3525 1500 Upgrades 26 | 6 1 . 2 . . . 2 7 8 Propulsion Slot 2 | 1 . . 1 . . . . . . Utility Slot 4 | 1 . . 1 . . . 1 1 . Weapon Slot 1 | 1 . . . . . . . . . Inventory Capacity 5 | 3 1 . . . . . 1 . . Sensor Range 10 | . . . . . . . . 2 8 Hack Attack % 4 | . . . . . . . . 4 . Protomatter Created 522 | . 74 96 124 . . 148 54 26 . Integrity Restored 1314 | . 196 288 209 . . 396 147 78 . Core 1314 | . 196 288 209 . . 396 147 78 . Protomatter Decayed 84 | . . 26 54 . . . 4 . . Game ------ Seed ArcCannonStorm Manual? 0 Play Time 00:30:27 Cumulative 153.1 hours Start 2020.07.17 @ 04:11:14 End 2020.07.17 @ 04:41:10 Sessions 1 Manual Loads 0 Difficulty Rogue Special Mode Winter2019/RPGLIKE Game No. 196 Rogue 130 Adventurer 0 Explorer 66 Win Type - Total 29 Types 21/0/4/3/1/0/0 Lore% 86 Gallery% 80 Achievement% 56 Wizard Run 0 Options --------- ASCII 0 Keyboard 0 Movement Numpad Keybinds 1 Fullscreen 2 Font 18/X11 Map View 76x50 Tactical HUD 1 Map Filters NONE Filters NONE Steam 1 RUN: 132a7496-2eef-4d8e-bce5-74526905acc3